Cogmind - Beta 15 @@@ ROGUE MODE // 2025.07.04 @ 20:58:59 Player: StaticNoob Result: Destroyed by H-88 Terminator with Heavy Machine Gun Performance ------------- Evolutions (9) 4500 Regions Visited (30) 6000 Robots Destroyed (282) 1410 Value Destroyed (18702) 18702 Prototype IDs (49) 980 Alien Tech Used (0) 0 Bonus (14047) 14047 TOTAL SCORE: 45639 Bonus ------- High Alert Combat Kills 2960 Follower Combat Kills 2387 Entered Garrisons 2400 Used RIF Installer 6000 Aligned with FarCom 300 Cogmind --------- Core Integrity 0/1600 Matter 492/550 Energy 86/100 System Corruption 24% Temperature Cool (3) Movement Treading (160) Location -1/Access Parts ------- > --- POWER (2) -------- (None) > --- PROPULSION (5) --- Improved Heavy Treads > --- UTILITY (14) ----- Large Storage Unit Matter Compressor Advanced Target Analyzer > --- WEAPON (4) ------- (None) > --- INVENTORY (15) --- Phase Gun Peak State ------------ > --- POWER ------------ Reinforced Antimatter Reactor Particle Reactor > --- PROPULSION ------- Biometal Leg Biometal Leg Centrium Leg Heavy Shield Leg > --- UTILITY ---------- Advanced Heat Sink Coolant Injector Large Storage Unit Matter Compressor Advanced Target Analyzer Improved Weapon Cycler Improved Transmission Jammer Improved Core Shielding Graphene Brace Thermal Shield Relay Coupler [NC] Relay Coupler [C] Relay Coupler [Sentry] Relay Coupler [Hunter] > --- WEAPON ----------- Quantum Rifle Enhanced Quantum Rifle Railgun Advanced Remote Datajack > --- INVENTORY -------- Improved Heavy Treads Improved Heavy Treads Biometal Medium Treads Myomer Leg Centrium Wheel Centrium Wheel Centrium Wheel Centrium Wheel Centrium Wheel Experimental Power Amplifier Advanced Recoil Stabilizer Phase Gun [Rating: 169] Favorites ----------- Power Particle Reactor Engine Heavy Ion Engine Power Core Light Nuclear Core Reactor Particle Reactor Propulsion Centrium Leg Treads Light Treads Leg Centrium Leg Wheel Wheel Hover Unit Airjet Flight Unit Cesium-ion Thruster Utility Large Storage Unit Device Improved Transmission Jammer Storage Large Storage Unit Processor Advanced Targeting Computer Hackware Relay Coupler [Sentry] Protection Improved Medium Armor Plating Weapon KE Penetrator Energy Gun Phase Gun Energy Cannon Enhanced Nova Cannon Ballistic Gun KE Penetrator Ballistic Cannon Heavy Mass Driver Launcher Grenade Launcher Special Weapon Advanced Remote Datajack Special Melee Weapon Datajack Build | -11 -10 -9 -9 -9 -8 -8 -8 -8 -8 -7 -7 -7 -7 -6 -6 -5 -5 -5 -5 -4 -4 -4 -4 -3 -3 -2 -2 -2 -2 -1 ------- Run | Yrd Mat Mat Min Exi Min Mat Gar Mat Gar Fac Gar Fac Gar Fac Gar Fac Gar Fac Gar Fac Gar Fac Gar Res Gar Res Gar Res Gar Acc Slots Evolved 18 | . . 2 . . . 2 . . . 2 . . . 2 . 2 . . . 2 . . . 2 . 2 . . . 2 Power 1 | . . . . . . . . . . . . . . . . . . . . . . . . 1 . . . . . . Propulsion 3 | . . 1 . . . 1 . . . . . . . . . . . . . . . . . . . . . . . 1 Utility 12 | . . 1 . . . 1 . . . . . . . 2 . 2 . . . 2 . . . 1 . 2 . . . 1 Weapon 2 | . . . . . . . . . . 2 . . . . . . . . . . . . . . . . . . . . Parts Attached 294 | 8 9 17 4 2 3 3 2 . 4 . 11 5 8 2 17 . 13 3 9 5 4 3 35 6 12 6 4 7 47 45 Power 27 | 2 1 2 . . . . . . . . 1 . 2 . 1 . 1 . . . . . 4 . 1 1 1 1 3 6 Engine 7 | 2 1 2 . . . . . . . . . . . . 1 . . . . . . . . . . . . . . 1 Core 3 | . . . . . . . . . . . 1 . 2 . . . . . . . . . . . . . . . . . Reactor 17 | . . . . . . . . . . . . . . . . . 1 . . . . . 4 . 1 1 1 1 3 5 Propulsion 72 | 2 1 7 1 . . 1 . . . . 2 3 . 1 10 . 4 1 3 2 . 1 6 3 1 2 . 2 6 13 Treads 10 | . 1 3 . . . . . . . . . 1 . . . . 1 . . . . . . . . . . . . 4 Leg 43 | . . . . . . . . . . . . 2 . . 5 . 3 1 3 2 . 1 6 3 1 2 . 2 6 6 Wheel 12 | 2 . 4 1 . . . . . . . 1 . . 1 . . . . . . . . . . . . . . . 3 Hover 1 | . . . . . . . . . . . 1 . . . . . . . . . . . . . . . . . . . Flight 6 | . . . . . . 1 . . . . . . . . 5 . . . . . . . . . . . . . . . Utility 120 | 2 4 4 3 1 . 1 1 . 2 . 5 2 1 1 2 . 7 2 2 3 3 1 18 3 4 2 3 4 23 16 Device 55 | 1 1 3 2 . . 1 1 . 1 . 3 1 . . . . 2 1 1 3 . 1 4 1 2 . 1 2 13 10 Storage 7 | 1 2 . . 1 . . . . . . . . . . . . . . . . . . . 1 . . . . 1 1 Processor 7 | . . . . . . . . . . . 1 . . . . . . . . . 1 . 1 . . 1 1 . 1 1 Hackware 29 | . . . . . . . . . . . . . 1 . 2 . 3 . 1 . 2 . 10 1 2 . 1 1 4 1 Protection 22 | . 1 1 1 . . . . . 1 . 1 1 . 1 . . 2 1 . . . . 3 . . 1 . 1 4 3 Artifact . | . . . . . . . . . . . . . . . . . . . . . . . . . . . . . . . Weapon 75 | 2 3 4 . 1 3 1 1 . 2 . 3 . 5 . 4 . 1 . 4 . 1 1 7 . 6 1 . . 15 10 Energy Gun 21 | . . 2 . . 1 1 . . . . 1 . . . 1 . . . . . . . . . 1 . . . 9 5 Energy Cannon 11 | . 1 2 . . 2 . . . . . . . 2 . . . . . 1 . . . 2 . . 1 . . . . Ballistic Gun 24 | 2 . . . . . . 1 . 2 . . . . . 3 . 1 . 1 . 1 . 3 . 3 . . . 5 2 Ballistic Cannon 10 | . . . . . . . . . . . 2 . 2 . . . . . 1 . . 1 1 . 1 . . . . 2 Launcher 2 | . 2 . . . . . . . . . . . . . . . . . . . . . . . . . . . . . Special Weapon 6 | . . . . . . . . . . . . . 1 . . . . . 1 . . . 1 . 1 . . . 1 1 Impact Weapon . | . . . . . . . . . . . . . . . . . . . . . . . . . . . . . . . Slashing Weapon . | . . . . . . . . . . . . . . . . . . . . . . . . . . . . . . . Piercing Weapon . | . . . . . . . . . . . . . . . . . . . . . . . . . . . . . . . Special Melee Weapon 1 | . . . . 1 . . . . . . . . . . . . . . . . . . . . . . . . . . Unidentified Prototypes 4 | . . 1 . . . . . . . . . . . . . 1 . . . . . . . . . . 1 . . 1 Corrupted Parts 9 | . . . 1 . 2 . . . . . . . 1 . . . . . . . 1 . 2 . . . . . 1 1 System Corruption 38 | . . . 1 . 10 . . . . . . . 1 . . . . . . . 3 . 9 . . . . . 10 4 Parts Lost 144 | . 7 7 1 . . . . . 3 . 3 . 1 . 4 1 3 1 3 1 1 3 9 . 3 . . 2 38 53 Power 14 | . 1 1 . . . . . . . . . . 1 . . . . . . . . . 2 . . . . . 3 6 Propulsion 33 | . 2 2 1 . . . . . . . . . . . 3 . 1 1 1 . . 1 1 . . . . 1 6 13 Utility 54 | . 2 1 . . . . . . 1 . 2 . . . . . 1 . . 1 . 2 4 . 2 . . 1 16 21 Weapon 43 | . 2 3 . . . . . . 2 . 1 . . . 1 1 1 . 2 . 1 . 2 . 1 . . . 13 13 Highest Loss Streak 20 | . 2 3 1 . . . . . 1 . 3 . 1 . 2 1 2 1 2 1 1 3 5 . 2 . . 1 12 20 To Critical Strikes 2 | . . . . . . . . . . . . . . . . . . . . . . . 1 . . . . . . 1 Average Backups 12 | 2 7 9 13 13 15 12 14 14 14 14 13 15 13 13 12 13 13 13 13 11 14 12 13 13 13 12 14 14 6 9 Power 1 | . 1 1 1 2 3 3 1 1 1 1 . . . 2 1 1 1 1 1 1 1 1 . . . 1 1 1 . . Propulsion 2 | 1 3 2 1 1 1 1 1 1 1 1 . . . . 1 2 2 1 1 3 4 1 1 1 2 3 4 4 3 5 Utility 6 | . . 2 4 4 6 4 5 8 8 10 9 10 9 8 7 7 6 7 9 7 7 9 10 10 8 5 5 7 2 1 Weapon 1 | . 1 2 5 5 4 3 3 3 2 1 1 2 1 1 1 1 1 2 1 . . 1 . 1 2 2 1 1 . 2 Tool/Special . | . . . . . . . . . . . . . . . . . . . . . . . . . . . . . . . Unused Backups 44 | . . . . 2 . 1 3 . 2 . 2 . 1 . 3 . 2 2 3 . 4 . 5 . . 3 1 1 4 5 Power 10 | . . . . . . . 2 . . . 1 . 1 . . . 1 . . . 1 . 1 . . . 1 1 1 . Propulsion 16 | . . . . . . . 1 . . . . . . . 2 . 1 . 1 . 3 . 4 . . . . . 1 3 Utility 14 | . . . . 1 . 1 . . 2 . 1 . . . 1 . . 1 2 . . . . . . 3 . . 2 . Weapon 4 | . . . . 1 . . . . . . . . . . . . . 1 . . . . . . . . . . . 2 Tool/Special . | . . . . . . . . . . . . . . . . . . . . . . . . . . . . . . . Average Slot Usage (%) 91 | . 96 92 100 100 100 72 72 72 71 68 70 75 77 72 87 82 91 94 96 99 99 99 94 99 99 94 90 92 92 94 Engine 2 | . 14 10 11 11 11 9 9 9 9 7 1 . . . 3 5 1 . . . . . . . . . . . . 1 Reactor 3 | . . . . . . . . . . . . . . . . . 3 5 5 5 5 5 4 9 8 8 8 8 7 6 Treads 2 | . 8 11 18 22 22 . . . . . . 6 7 6 1 . . . . . . . . . . . . . . 2 Leg 13 | . . . . . . . . . . . . 6 7 4 16 23 22 23 22 21 21 21 17 19 19 16 13 14 16 14 Wheel 3 | . 19 21 14 11 11 . . . . . 5 7 7 8 1 . . . . . . . . . . . . . . 1 Device 14 | . 11 9 15 11 11 17 18 18 18 15 12 8 5 4 6 11 9 17 13 25 24 25 14 13 18 17 15 12 21 20 Storage 6 | . 14 11 11 11 11 9 9 9 9 7 7 7 7 6 6 5 5 5 5 5 5 5 5 4 4 4 4 4 3 7 Processor 4 | . . . . . . . . . . . 5 7 7 6 6 5 5 5 5 5 6 10 7 4 4 4 4 4 4 5 Hackware 12 | . . . . . . . . . . . . . 4 6 11 5 12 11 15 15 15 10 18 22 22 21 22 26 19 16 Protection 4 | . 1 9 6 11 11 9 9 9 8 7 3 5 3 7 6 5 8 5 3 . . . 3 4 . 4 4 4 1 3 Energy Gun 1 | . . 9 . . . 9 8 . . 3 . . . . 3 5 . . . . . . . . 2 . . . 5 7 Energy Cannon 3 | . 1 7 22 11 22 9 9 9 4 3 1 . 3 . . . . . 3 5 5 5 5 4 1 3 4 4 . . Ballistic Gun 5 | . 23 . . . . . . 9 12 15 3 . . . 4 5 8 11 7 5 7 6 3 4 7 4 4 4 6 2 Ballistic Cannon 4 | . . . . . . . . . . . 11 15 12 13 6 5 5 5 4 5 2 3 5 4 1 4 4 4 . 1 Special Weapon 2 | . . . . . . . . . . . . . . . . . 2 . 1 5 5 5 5 4 4 4 4 4 2 3 Peak Build Rating 169 | 7 9 21 22 22 25 54 53 53 56 61 72 57 63 66 69 61 86 92 102 116 116 114 128 131 133 149 161 161 158 169 Average Rating 92 | 5 7 13 20 21 24 52 52 53 53 57 52 55 57 62 59 60 75 87 96 113 111 110 116 127 129 144 153 159 139 153 On Entrance 75 | . 7 4 21 20 22 25 53 53 53 55 60 52 56 59 66 61 61 86 92 102 116 107 114 115 129 131 149 161 158 149 Naked Turns . | . . . . . . . . . . . . . . . . . . . . . . . . . . . . . . . Heaviest Build 120 | 14 30 44 44 59 64 46 46 46 46 46 68 78 77 83 87 75 90 79 84 82 82 86 91 96 99 117 120 112 118 98 Greatest Support 146 | 26 26 26 32 10 10 50 50 50 50 50 50 28 28 38 60 60 70 78 99 104 104 104 120 116 116 120 120 120 118 146 Greatest Overweight (x) 28 | . 1 1 4 5 6 . . . . . 2 2 3 2 28 1 1 1 1 . . . 1 1 1 1 . 1 1 8 Average Overweight (x) . | . . 1 1 3 6 . . . . . 1 2 1 1 1 1 1 . . . . . . . . . . . . . Largest Inventory Capacity 25 | 8 15 15 15 20 20 20 15 15 15 15 15 15 15 15 15 15 15 15 15 15 15 15 15 25 15 15 15 15 15 15 Average Capacity 14 | 7 13 15 15 17 20 15 15 15 15 15 15 15 15 15 15 15 15 15 15 15 15 15 15 15 15 15 15 15 8 14 Most Carried 18 | 5 10 15 15 18 18 18 15 15 15 15 15 15 15 15 15 15 15 15 15 15 15 15 15 15 15 15 15 15 15 15 Average Carried 13 | 2 7 9 14 15 18 12 13 14 14 14 13 14 14 14 14 15 14 14 14 12 14 13 14 14 14 12 14 14 8 11 Final Capacity 20 | 8 15 15 15 20 20 15 15 15 15 15 15 15 15 15 15 15 15 15 15 15 15 15 15 15 15 15 15 15 5 15 Final Carried 18 | 5 8 15 15 18 18 14 14 15 15 15 15 15 15 15 15 15 15 15 14 15 15 13 15 15 15 15 15 15 5 1 Class Distribution -------------------- 31% | Botlord-Tank 19% | Bothacker-Skirmisher 11% | Botlord-Gunner 9% | Bothacker-Gunner 9% | Scavenger-Mutant 7% | Mutant 4% | Bothacker-Tank 3% | Bothacker-Mutant Dominant Class ---------------- Mutant | -10/Materials Scavenger-Mutant | -9/Materials Scavenger-Mutant | -9/Mines Scavenger-Mutant | -9/Exiles Scavenger-Mutant | -8/Mines Mutant | -8/Materials Mutant | -8/Garrison Bothacker-Mutant | -8/Materials Bothacker-Mutant | -8/Garrison Bothacker-Mutant | -7/Factory Bothacker-Skirmisher | -7/Garrison Bothacker-Skirmisher | -7/Factory Bothacker-Skirmisher | -7/Garrison Bothacker-Skirmisher | -6/Factory Bothacker-Skirmisher | -6/Garrison Bothacker-Skirmisher | -5/Factory Bothacker-Tank | -5/Garrison Bothacker-Gunner | -5/Factory Bothacker-Gunner | -5/Garrison Botlord-Tank | -4/Factory Botlord-Tank | -4/Garrison Botlord-Gunner | -4/Factory Botlord-Gunner | -4/Garrison Botlord-Tank | -3/Research Botlord-Tank | -3/Garrison Botlord-Tank | -2/Research Botlord-Tank | -2/Garrison Botlord-Tank | -2/Research Botlord-Tank | -2/Garrison Botlord-Tank | -1/Access Resources | -11 -10 -9 -9 -9 -8 -8 -8 -8 -8 -7 -7 -7 -7 -6 -6 -5 -5 -5 -5 -4 -4 -4 -4 -3 -3 -2 -2 -2 -2 -1 ----------- Run | Yrd Mat Mat Min Exi Min Mat Gar Mat Gar Fac Gar Fac Gar Fac Gar Fac Gar Fac Gar Fac Gar Fac Gar Res Gar Res Gar Res Gar Acc Matter Collected 13496 | 198 348 578 92 10 20 49 77 . 218 . 421 194 467 203 915 . 646 109 728 . 569 42 1523 492 898 . 962 326 2137 1274 Remotely . | . . . . . . . . . . . . . . . . . . . . . . . . . . . . . . . Salvage Created 12523 | 105 489 748 207 . 84 60 172 . 377 . 250 110 202 203 329 . 526 234 373 63 201 . 877 291 755 . 1010 320 2125 2412 Parts 604 | 7 31 62 5 . 8 4 11 . 25 . 15 20 17 7 8 . 28 15 12 4 8 . 31 16 38 . 30 16 83 103 Haulers Intercepted 2 | . 1 1 . . . . . . . . . . . . . . . . . . . . . . . . . . . . Recyclers Shooed 9 | . . 2 . . . . . . . . . . . . . . . . . . . . . 1 . . . . . 6 Parts Field Recycled 45 | . . . . . . . . . . . . 26 11 . 8 . . . . . . . . . . . . . . . Retrieved Matter 501 | . . . . . . . . . . . . 350 99 . 52 . . . . . . . . . . . . . . . Parts Self-Destructed . | . . . . . . . . . . . . . . . . . . . . . . . . . . . . . . . Prevented . | . . . . . . . . . . . . . . . . . . . . . . . . . . . . . . . Kills | -11 -10 -9 -9 -9 -8 -8 -8 -8 -8 -7 -7 -7 -7 -6 -6 -5 -5 -5 -5 -4 -4 -4 -4 -3 -3 -2 -2 -2 -2 -1 ------- Run | Yrd Mat Mat Min Exi Min Mat Gar Mat Gar Fac Gar Fac Gar Fac Gar Fac Gar Fac Gar Fac Gar Fac Gar Res Gar Res Gar Res Gar Acc Combat Hostiles Destroyed 237 | . 13 22 4 . 3 2 4 . 12 . 7 3 11 2 11 . 16 6 7 1 5 . 18 3 13 . 15 6 28 25 Guns 96 | . 9 7 . . . . 1 . 7 . 1 . . . 4 . 3 4 3 . 2 . 3 1 4 . 5 1 26 15 Cannons 115 | . . 3 2 . 3 2 3 . 5 . 5 3 11 2 7 . 13 2 3 1 3 . 14 2 9 . 9 4 2 7 AOE 20 | . 4 12 . . . . . . . . 1 . . . . . . . . . . . . . . . . 1 . 2 Classes Destroyed 18 | 2 4 1 1 . 1 . . . 2 . 1 1 1 . 1 . . . . . . . 1 . . . 1 . . 1 Worker 10 | . . . . . 1 . . . . . . 2 . 1 . . . 1 . . . . . 1 . . . . . 4 Builder 8 | . . . . . . . . . . . . 4 . 1 . . . . . . . . . 1 . . . . . 2 Tunneler 4 | 2 . . . . . . . . . . . . . . . . . . . . . . . 2 . . . . . . Hauler 2 | . 1 1 . . . . . . . . . . . . . . . . . . . . . . . . . . . . Recycler 9 | 1 . 2 . . . . . . . . . . . 1 . . . . . . . . . . . . . . . 5 Watcher 9 | . 1 4 . . . . . . . . . . . 1 . . . . . . . . . . 1 . . 1 . 1 Swarmer 54 | . 3 10 . . 3 1 . . 4 . . . 3 . 2 . 8 4 . . 3 . 2 . 5 . 3 3 . . Cutter 6 | . . . . . . . . . . . . . 3 . . . . . . . . . . . . . . . 3 . Grunt 76 | . 10 8 3 . . 1 3 . 4 . 3 . 2 . 3 . 3 . 3 . 1 . 7 . 2 . 6 . 11 6 Brawler 5 | . . . 1 . . . . . . . . . . . . . . . . . . . . . 1 . . . 2 1 Duelist 8 | . . . . . . . . . 1 . 1 . . . 4 . . . . . . . . . . . . . 2 . Protector 1 | . . . . . . . . . . . . . . . . . . . . . . . . . . . . . . 1 Sentry 20 | . . 4 . . . . 1 . 1 . . . . . . . 2 1 . 1 . . 2 . 3 . 1 1 1 2 Specialist 4 | . . . . . . . . . . . . . . . 2 . . . . . . . . . . . 1 . . 1 Hunter 12 | . . . . . . . . . . . 2 . . . . . . . . . . . 2 2 . . . . 2 4 Programmer 49 | . . . . . . . . . 2 . 1 3 3 2 . . 3 1 4 . 1 . 4 2 1 . 4 2 6 10 Behemoth 3 | . . . . . . . . . . . . . . . . . . . . . . . 1 . 1 . . . 1 . Executioner 2 | . . . . . . . . . . . . . . . . . . . . . . . . . . . 2 . . . Best Kill Streak 8 | 3 5 8 2 . 4 1 3 . 4 . 4 4 3 3 4 . 6 6 2 1 3 . 3 4 3 . 3 2 4 7 Combat Bots Only 7 | . 5 6 2 . 3 1 3 . 4 . 4 1 3 1 4 . 6 5 2 1 3 . 3 2 3 . 3 2 4 7 Max Kills in Single Turn 3 | 2 2 3 1 . 1 1 1 . 2 . 1 2 1 1 1 . 2 2 1 1 1 . 1 2 1 . 1 1 1 2 Gunslinging . | . . . . . . . . . . . . . . . . . . . . . . . . . . . . . . . Exploded 3 | . 2 3 . . . . . . . . 1 . . . . . . . . . . . . . . . . 1 . 1 Melee . | . . . . . . . . . . . . . . . . . . . . . . . . . . . . . . . Uniques/NPCs Destroyed . | . . . . . . . . . . . . . . . . . . . . . . . . . . . . . . . Combat | -11 -10 -9 -9 -9 -8 -8 -8 -8 -8 -7 -7 -7 -7 -6 -6 -5 -5 -5 -5 -4 -4 -4 -4 -3 -3 -2 -2 -2 -2 -1 -------- Run | Yrd Mat Mat Min Exi Min Mat Gar Mat Gar Fac Gar Fac Gar Fac Gar Fac Gar Fac Gar Fac Gar Fac Gar Res Gar Res Gar Res Gar Acc Hostile Shots Fired 1971 | . 75 75 16 . 12 1 6 . 107 . 45 15 68 6 55 . 64 15 48 6 38 6 179 27 102 2 101 26 381 495 Missed 563 | . 18 18 3 . 3 . 4 . 32 . 16 2 20 1 14 . 17 5 10 2 13 3 56 8 27 2 31 9 127 122 Deflected 15 | . . . . . . . . . . . . . . . . . . . . . . . . . . . 3 . . 12 Hits 1408 | . 57 57 13 . 9 1 2 . 75 . 29 13 48 5 41 . 47 10 38 4 25 3 123 19 75 . 70 17 254 373 Melee 30 | . . . . . . . . . . . 3 . 3 . 15 . . . . . . . . . . . . . 8 1 Projectile 1378 | . 57 57 13 . 9 1 2 . 75 . 26 13 45 5 26 . 47 10 38 4 25 3 123 19 75 . 70 17 246 372 AOE 3 | . . . . . . . . . 1 . . . 1 . . . . . . . . . . . . . . . 1 . Critical Strikes 56 | . 1 . . . . . . . 3 . 1 . 3 1 1 . 1 . 1 2 1 . 6 . 3 . 2 2 16 12 Actively Blocked 37 | . . . . . . . . . . . . . . . . . . . 1 . . . 3 . 3 . 2 2 16 10 Part Disruptions 10 | . . . . . . . . . . . . . . . 3 . . . . . . . . 1 1 . . . 3 2 Damage Taken 29330 | . 785 859 190 . 69 7 32 . 1164 . 654 197 727 75 888 . 904 172 836 148 359 338 2360 376 1574 44 1263 755 5776 8778 Core 4154 | . 191 105 21 . 19 . . . 74 . 81 47 47 15 87 . 72 . 151 24 19 80 434 25 243 . 127 89 586 1617 Absorbed by Shields 766 | . . . . . . . . . . . 5 . 15 . . . . . 16 12 96 18 18 . 243 . 320 . 23 . Redirected to Shielding 250 | . . 3 . . . . . . . . 19 46 . . . . . . . . . . . . . . . . 103 79 Ignored by Resistances 1052 | . . . . . . . . . . . . . . . . . . . . 8 6 . 87 . . . . . 781 170 Regen/Repaired (Parts) 270 | . . . . . . . . . . . . . . . . . . 270 . . . . . . . . . . . . Core Remaining (%) 68 | 100 23 . . . 63 . . . 86 . . . 75 . 88 . . . 77 . . . 51 . 79 . . . 44 . Volleys Fired 1002 | 7 44 54 13 . 4 5 10 1 53 . 29 14 22 9 36 . 32 9 31 3 25 13 92 29 55 8 63 35 160 146 Largest 4 | 2 2 2 2 . 2 2 2 1 2 . 4 2 3 2 3 . 3 3 4 3 3 3 3 3 3 3 3 3 4 4 Hottest 284 | 40 60 126 126 . 126 130 130 65 88 . 161 120 203 130 175 . 128 128 223 193 193 197 229 204 204 210 210 210 284 247 Shots Fired 2129 | 14 85 73 22 . 9 10 19 1 103 . 59 30 41 16 70 . 67 21 74 7 53 20 179 54 147 12 168 78 374 323 Gun 1176 | 14 79 34 . . 1 5 9 . 68 . 31 . . . 15 . 35 14 36 2 20 3 42 13 68 2 53 25 354 253 Cannon 867 | . 2 27 22 . 8 5 10 1 35 . 28 30 41 16 50 . 25 7 35 5 32 14 121 39 74 8 108 50 17 57 Launcher 16 | . 4 12 . . . . . . . . . . . . . . . . . . . . . . . . . . . . Special 70 | . . . . . . . . . . . . . . . 5 . 7 . 3 . 1 3 16 2 5 2 7 3 3 13 Kinetic 1281 | 14 79 . . . . . . . 68 . 48 30 33 16 64 . 60 21 60 4 34 7 113 26 97 4 106 48 238 111 Thermal 681 | . 2 57 . . . 10 19 1 33 . . . . . 1 . . . 11 3 18 10 50 26 45 6 55 27 115 192 Explosive 16 | . 4 12 . . . . . . . . . . . . . . . . . . . . . . . . . . . . Electromagnetic 81 | . . 4 22 . 9 . . . 2 . 11 . 8 . . . . . . . . . . . . . . . 18 7 Robot Hit Streak 16 | 6 11 10 6 . 2 7 15 . 8 . 16 5 10 4 9 . 9 3 5 5 8 1 9 8 10 2 15 9 16 10 Robot Miss Streak 5 | 1 5 5 2 . 3 2 1 . 3 . 2 3 4 2 3 . 3 4 3 1 3 3 4 5 4 3 5 4 5 4 Penetration Max 2 | . . . . . . . . . . . . . . . . . 1 . . 1 . . . 1 . . 2 1 1 1 Secondary Targets 4 | . 2 . . . . . . . . . . . . . . . . . . . . . . . . . . . 1 1 Max Gunslinging Chain 1 | . 1 . . . . . . . . . . . . . . . . . . . . . . . . . . . 1 1 Shots Hit Robots 1218 | 10 55 41 15 4 3 8 12 . 55 . 34 12 25 8 59 . 39 7 43 5 28 2 104 21 89 4 94 39 213 189 Core Hits 467 | 4 27 42 2 . 4 3 6 . 19 . 11 6 9 6 11 . 18 7 12 3 9 . 38 14 23 . 27 11 75 80 Critical Kills 8 | . . . . . . . . . . . . . . . . . . . 1 . . . 2 . 1 . 1 . 3 . Critical Parts Destroyed 18 | . 1 . . . . . . . . . . . . . . . . . 1 . . . 1 . . . 2 1 6 6 Critical Strikes 68 | . 1 1 . . . 1 . . 1 . 1 1 1 1 3 . 4 1 3 1 3 . 9 . 2 . 4 2 13 15 Burn 12 | . . 1 . . . 1 . . . . . . . . . . . . . . . . . . . . . . 3 7 Meltdown 3 | . . . . . . . . . . . . . . . . . . . 1 . . . 1 . . . 1 . . . Destroy 25 | . 1 . . . . . . . 1 . . . . . . . . . 1 . . . 2 . 1 . 2 1 10 6 Blast 28 | . . . . . . . . . . . 1 1 1 1 3 . 4 1 1 1 3 . 6 . 1 . 1 1 . 2 Melee Attacks 28 | . . . . 4 . . . . . . . . 2 . 22 . . . . . . . . . . . . . . . Impact . | . . . . . . . . . . . . . . . . . . . . . . . . . . . . . . . Slashing . | . . . . . . . . . . . . . . . . . . . . . . . . . . . . . . . Piercing . | . . . . . . . . . . . . . . . . . . . . . . . . . . . . . . . Sneak Attacks 26 | . . . . 4 . . . . . . . . . . 22 . . . . . . . . . . . . . . . Combat Hostiles . | . . . . . . . . . . . . . . . . . . . . . . . . . . . . . . . Follow-up Attacks . | . . . . . . . . . . . . . . . . . . . . . . . . . . . . . . . Damage Inflicted 38875 | 115 792 1432 441 . 98 213 283 . 1207 . 1026 938 1505 719 2006 . 1665 345 1501 163 832 21 3442 1023 2256 62 3583 1549 5493 6165 Guns 17005 | 115 539 305 . . . 86 133 . 771 . 366 . . . 149 . 474 167 492 64 239 21 476 329 1054 27 963 422 5100 4713 Cannons 20269 | . 18 322 441 . 98 127 150 . 436 . 660 938 1505 719 1857 . 1191 178 1009 99 593 . 2966 694 1202 35 2620 942 362 1107 Explosions 1565 | . 235 805 . . . . . . . . . . . . . . . . . . . . . . . . . 181 . 344 Melee . | . . . . . . . . . . . . . . . . . . . . . . . . . . . . . . . Ramming 36 | . . . . . . . . . . . . . . . . . . . . . . . . . . . . 4 31 1 Kinetic 24328 | 115 539 . . . . . . . 771 . 1016 938 1333 719 2006 . 1665 345 1266 123 551 21 2141 602 1522 62 2021 863 3605 2104 Thermal 12064 | . 18 551 . . . 213 283 . 436 . . . . . . . . . 235 40 281 . 1301 421 734 . 1562 501 1565 3923 Explosive 1221 | . 235 805 . . . . . . . . . . . . . . . . . . . . . . . . . 181 . . Electromagnetic 1226 | . . 76 441 . 98 . . . . . 10 . 172 . . . . . . . . . . . . . . . 292 137 Impact . | . . . . . . . . . . . . . . . . . . . . . . . . . . . . . . . Slashing . | . . . . . . . . . . . . . . . . . . . . . . . . . . . . . . . Piercing . | . . . . . . . . . . . . . . . . . . . . . . . . . . . . . . . Highest Corruption 27 | . . 1 2 . 10 . . . 5 . 1 3 8 2 4 . . . 5 . 5 17 27 7 8 . 2 6 27 24 Average Corruption 7 | . . 1 1 . 8 . . . 4 . 1 1 4 1 2 . . . 4 . 3 10 18 3 7 . 2 3 17 13 Corruption Purged 2 | . . . 2 . . . . . . . . . . . . . . . . . . . . . . . . . . . Corruption Blocked . | . . . . . . . . . . . . . . . . . . . . . . . . . . . . . . . Effects 439 | . . 3 4 . . . . . . . 4 5 17 . 29 . . . 21 . 17 19 100 12 43 . 9 23 78 55 Message Errors 104 | . . . 1 . . . . . . . 3 1 6 . 7 . . . 5 . 2 6 29 3 9 . 2 7 12 11 Matter Fused 123 | . . 2 3 . . . . . . . . 1 5 . 7 . . . 8 . 7 4 24 3 12 . 2 10 20 15 Heat Flow Errors 45 | . . 1 . . . . . . . . 1 . 2 . 5 . . . 1 . 2 1 10 . 6 . 2 . 8 6 Energy Discharges 41 | . . . . . . . . . . . . 1 . . 5 . . . . . 2 1 11 . 7 . 1 1 8 4 Parts Rejected 4 | . . . . . . . . . . . . . . . . . . . . . . . 2 . . . . . 2 . Parts Fused 4 | . . . . . . . . . . . . . . . . . . . 1 . . . 1 . . . . . 2 . Data Loss (minor) 42 | . . . . . . . . . . . . . 3 . 3 . . . 1 . 4 2 8 2 3 . . 2 8 6 Data Loss (major) 19 | . . . . . . . . . . . . . 1 . . . . . 3 . . 2 1 3 2 . 1 . 2 4 Misfires 19 | . . . . . . . . . . . . 2 . . 2 . . . 1 . . 2 4 1 2 . . . 4 1 Alerts 10 | . . . . . . . . . . . . . . . . . . . . . . 1 4 . . . 1 . 3 1 Misdirections 3 | . . . . . . . . . . . . . . . . . . . . . . . 2 . . . . . . 1 Weapon Failures 25 | . . . . . . . . . . . . . . . . . . . 1 . . . 4 . 2 . . 3 9 6 Overload Shots . | . . . . . . . . . . . . . . . . . . . . . . . . . . . . . . . Overflow Damage 1543 | . 18 22 7 . . . . . 5 . 39 148 176 149 247 . 117 30 258 . 26 . 15 54 50 . 92 63 13 14 Projectiles 1503 | . . . 7 . . . . . 5 . 39 148 176 149 247 . 117 30 258 . 26 . 15 54 50 . 92 63 13 14 Explosions 40 | . 18 22 . . . . . . . . . . . . . . . . . . . . . . . . . . . . Melee . | . . . . . . . . . . . . . . . . . . . . . . . . . . . . . . . Knockbacks 72 | . . . . . . . . . . . 4 2 6 2 13 . 3 . 7 . 3 . 8 2 . . 9 1 3 9 Impact . | . . . . . . . . . . . . . . . . . . . . . . . . . . . . . . . Kinetic 67 | . . . . . . . . . . . 4 2 6 2 11 . 2 . 6 . 3 . 8 2 . . 9 1 3 8 Secondary 5 | . . . . . . . . . . . . . . . 2 . 1 . 1 . . . . . . . . . . 1 Self-Inflicted Damage 191 | . 69 33 . . . . . . . . . . . . . . . . . . . . . . . . . . . 89 Shots 7 | . 3 2 . . . . . . . . . . . . . . . . . . . . . . . . . . . 2 Rammed . | . . . . . . . . . . . . . . . . . . . . . . . . . . . . . . . Targets Rammed 8 | . . . . . . . . . . . . . . . . . . . . . . . . . . . . 1 6 1 Kicked 8 | . . . . . . . . . . . . . . . . . . . . . . . . . . . . 1 6 1 Crushed . | . . . . . . . . . . . . . . . . . . . . . . . . . . . . . . . Highest Temperature 528 | . 47 225 99 . 81 171 333 10 127 . 55 . 245 72 288 . . 32 527 177 291 158 528 252 500 150 443 417 502 429 Average Temperature 112 | . 18 59 34 . 37 72 129 7 42 . 15 . 76 29 107 . . 14 195 69 91 57 168 72 119 79 133 139 101 104 Received Heat Transfer 2971 | . 339 237 93 . . . 18 . 207 . 132 . 48 . 36 . 153 9 180 69 37 . 218 . 136 . 69 36 720 234 Effects 48 | . . . . . . . 1 . . . . . . . . . . . 14 . . . 10 1 5 . 6 4 6 1 Shutdowns 11 | . . . . . . . . . . . . . . . . . . . 1 . . . 2 . 2 . 1 3 2 . Energy Bleed 6 | . . . . . . . . . . . . . . . . . . . 2 . . . . . 1 . 1 1 1 . Interference 12 | . . . . . . . . . . . . . . . . . . . 3 . . . 2 1 . . 4 . 1 1 Matter Decay 5 | . . . . . . . 1 . . . . . . . . . . . 2 . . . 1 . . . . . 1 . Short Circuit 4 | . . . . . . . . . . . . . . . . . . . . . . . 2 . 2 . . . . . Damage (minor) 4 | . . . . . . . . . . . . . . . . . . . 1 . . . 2 . . . . . 1 . Damage (major) 4 | . . . . . . . . . . . . . . . . . . . 4 . . . . . . . . . . . Damage (core) 2 | . . . . . . . . . . . . . . . . . . . 1 . . . 1 . . . . . . . Siege Activations . | . . . . . . . . . . . . . . . . . . . . . . . . . . . . . . . Martial Activations . | . . . . . . . . . . . . . . . . . . . . . . . . . . . . . . . Shielding Activations 7 | . . . . . . . . . . . . . . . . . . . . . . . 1 . . . 3 1 . 2 Total Turns 211 | . . . . . . . . . . . . . . . . . . . . . . . 3 . . . 136 3 . 69 Longest Duration 99 | . . . . . . . . . . . . . . . . . . . . . . . 3 . . . 99 3 . 44 Robots Disrupted . | . . . . . . . . . . . . . . . . . . . . . . . . . . . . . . . Combat Hostiles . | . . . . . . . . . . . . . . . . . . . . . . . . . . . . . . . Robots Corrupted 2 | . . . 2 . . . . . . . . . . . . . . . . . . . . . . . . . . . Combat Hostiles 2 | . . . 2 . . . . . . . . . . . . . . . . . . . . . . . . . . . Parts Fried 10 | . . 1 4 . . . . . . . 2 . . . . . 1 . . . . . . 1 . . . . . 1 Impact Corruptions 1 | . . . . . . . . . . . . . . . . . 1 . . . . . . . . . . . . . Robots Melted 4 | . . . . . . . . . . . . . . . . . . . 1 . . . 1 . . . 1 . . 1 Combat Hostiles 4 | . . . . . . . . . . . . . . . . . . . 1 . . . 1 . . . 1 . . 1 Parts Melted 25 | . . 3 . . . . 1 . . . . . . . . . . . 1 . . . 3 . . . . . 3 14 Heat Transferred 13890 | . 37 1309 . . . 407 444 . 518 . . . . . . . . . 222 37 259 . 922 333 534 . 1200 407 2146 5115 Parts Sabotaged 1 | . . . . . . . . . . . . . . . 1 . . . . . . . . . . . . . . . Parts Stolen . | . . . . . . . . . . . . . . . . . . . . . . . . . . . . . . . Parts Stripped . | . . . . . . . . . . . . . . . . . . . . . . . . . . . . . . . Power Chain Reactions . | . . . . . . . . . . . . . . . . . . . . . . . . . . . . . . . Alert | -11 -10 -9 -9 -9 -8 -8 -8 -8 -8 -7 -7 -7 -7 -6 -6 -5 -5 -5 -5 -4 -4 -4 -4 -3 -3 -2 -2 -2 -2 -1 ------- Run | Yrd Mat Mat Min Exi Min Mat Gar Mat Gar Fac Gar Fac Gar Fac Gar Fac Gar Fac Gar Fac Gar Fac Gar Res Gar Res Gar Res Gar Acc Maximum Alert Level 4 | . . 2 . . . . 1 . 2 1 2 1 2 1 3 2 3 2 1 . 2 1 4 2 3 2 3 2 4 3 Low Security (%) 24 | 100 100 38 100 . 100 100 83 100 33 . 18 85 39 7 5 . . 8 17 100 37 51 17 . . . . . . . Level 1 23 | . . 39 . . . . 16 . 60 100 41 14 27 92 25 . 27 86 82 . 16 48 9 . 6 10 26 46 . . Level 2 31 | . . 21 . . . . . . 6 . 39 . 33 . 59 100 58 4 . . 45 . 30 100 12 89 38 53 17 59 Level 3 17 | . . . . . . . . . . . . . . . 9 . 14 . . . . . 28 . 81 . 35 . 54 40 Level 4 3 | . . . . . . . . . . . . . . . . . . . . . . . 14 . . . . . 27 . Level 5 . | . . . . . . . . . . . . . . . . . . . . . . . . . . . . . . . High Security . | . . . . . . . . . . . . . . . . . . . . . . . . . . . . . . . Max Security . | . . . . . . . . . . . . . . . . . . . . . . . . . . . . . . . Peak Influence 1322 | 15 124 438 174 . 69 68 225 114 407 213 429 224 453 248 807 423 790 414 347 182 574 303 1138 639 985 553 928 689 1322 902 Initial 792 | . 3 20 154 . . . 44 109 48 213 149 224 67 237 166 423 282 414 129 182 12 301 49 639 344 553 273 522 516 792 Average 446 | 2 61 251 59 . 12 11 154 96 267 213 336 136 271 220 485 417 513 271 296 73 328 190 632 528 764 466 613 434 882 707 Influence Increases 12071 | 15 376 747 115 . 79 79 201 6 389 . 310 191 456 131 881 . 618 185 308 48 572 74 1339 174 831 21 835 657 1306 1127 Destroy 0b10 Robot/C 5800 | . 260 440 80 . 60 60 80 . 240 . 140 60 320 40 340 . 340 120 140 20 260 . 640 60 340 . 400 220 600 540 Destroy 0b10 Robot/NC 295 | 15 10 35 . . 5 . . . . . 15 30 . 20 . . . 5 5 . 5 10 10 25 5 . 5 20 . 75 Destroy Leader 764 | . 64 110 20 . 10 10 . . 20 . 10 30 30 22 30 . 20 30 20 10 20 2 30 10 30 . 20 52 50 114 Allied During Kill 558 | . . . . . 4 4 2 . . . . . 26 . 102 . 16 . 4 . 78 3 93 2 78 . 41 50 33 22 Trap Triggered on 0b10 90 | . . . . . . . . . 10 . 30 . . . . . . . . . . . . . 20 . . . 30 . Successful Hack 386 | . 20 37 . . . 4 14 5 14 . . 55 . 14 . . 28 9 . 14 14 16 30 37 14 . . 27 . 34 Select Force Hacks 30 | . . 30 . . . . . . . . . . . . . . . . . . . . . . . . . . . . Disable Machine 420 | . . 45 . . . . . . . . 90 . . 15 . . . 15 . . . 15 15 . . . 30 75 45 75 Anti-Garrison Action 2050 | . . . . . . . 100 . 50 . . . . . 350 . 200 . 100 . 150 . 400 . 250 . 200 . 250 . Destroy Structure 1108 | . 22 35 . . . 1 5 1 10 . 10 16 20 5 29 . 14 6 39 4 45 28 121 40 79 21 109 213 58 177 Partial Spotted 30 | . . . . . . . . . 15 . . . . 15 . . . . . . . . . . . . . . . . Lose Combat Pursuer 540 | . . 15 15 . . . . . 30 . 15 . 60 . 30 . . . . . . . . . 15 . 30 . 240 90 Influence Decreases 11430 | 10 333 398 512 . 79 11 44 156 57 194 94 523 100 346 312 404 231 790 146 377 16 577 272 853 305 642 271 896 673 1808 Entered New Map 4870 | . 2 28 243 . . . 24 116 27 194 64 205 30 216 72 384 121 376 56 165 6 273 22 499 115 432 91 406 173 530 Time Decay 3740 | 10 261 300 259 . 79 11 . 40 . . . 318 . 130 . 10 . 404 . 202 . 254 . 294 . 190 . 410 . 568 Lost Part 1440 | . 70 70 10 . . . . . 30 . 30 . 10 . 40 10 30 10 30 10 10 30 90 . 30 . . 20 380 530 Lost Ally 1380 | . . . . . . . 20 . . . . . 60 . 200 . 80 . 60 . . 20 160 60 160 20 180 60 120 180 Squads Dispatched 45 | . 3 2 1 . . 1 . . . . . 3 . 2 . 1 . 4 . 2 . 2 . 5 . 2 . 5 . 12 Investigation 12 | . 2 1 . . . . . . . . . 2 . 1 . 1 . 2 . . . 1 . 1 . 1 . . . . Extermination 12 | . . . . . . . . . . . . 1 . 1 . . . 2 . . . 1 . 1 . 1 . 2 . 3 Reinforcement 13 | . 1 1 . . . . . . . . . . . . . . . . . 2 . . . 2 . . . 1 . 6 Assault 6 | . . . 1 . . . . . . . . . . . . . . . . . . . . . . . . 2 . 3 Garrison 2 | . . . . . . 1 . . . . . . . . . . . . . . . . . 1 . . . . . . Intercept . | . . . . . . . . . . . . . . . . . . . . . . . . . . . . . . . Searches Triggered . | . . . . . . . . . . . . . . . . . . . . . . . . . . . . . . . Construction Impeded 1 | . . . . . . . . . . . . . . . . . . . . 1 . . . . . . . . . . Haulers Reinforced 1 | . . . . . . . . . . . . . . . . . . . . . . . . . . . . . . 1 Active Scanning Responses . | . . . . . . . . . . . . . . . . . . . . . . . . . . . . . . . Cargo Convoy Interrupts . | . . . . . . . . . . . . . . . . . . . . . . . . . . . . . . . Stealth | -11 -10 -9 -9 -9 -8 -8 -8 -8 -8 -7 -7 -7 -7 -6 -6 -5 -5 -5 -5 -4 -4 -4 -4 -3 -3 -2 -2 -2 -2 -1 --------- Run | Yrd Mat Mat Min Exi Min Mat Gar Mat Gar Fac Gar Fac Gar Fac Gar Fac Gar Fac Gar Fac Gar Fac Gar Res Gar Res Gar Res Gar Acc Distress Signals 11 | . 2 2 . . . 1 . . . . . . . . . . . . . . . . . 1 . 1 . 1 . 3 Communications Jammed 258 | . . . . . . . . . . . . . . . . . . . . . . 1 . 25 . . . 10 . 222 Distress Signals 258 | . . . . . . . . . . . . . . . . . . . . . . 1 . 25 . . . 10 . 222 Times Spotted 426 | . 24 28 6 . 3 3 6 1 15 . 14 4 14 6 27 . 23 5 8 3 9 4 37 9 20 3 26 16 44 68 Peak Tracking Total 10 | . 5 9 2 . 3 2 3 2 4 . 5 1 4 2 8 . 6 3 2 1 2 3 7 4 4 2 6 4 6 10 Tactical Retreats 27 | . 1 1 1 . . . . . 1 . 1 . 2 . 1 . . . . . . . . . 1 . 2 . 12 4 Traps | -11 -10 -9 -9 -9 -8 -8 -8 -8 -8 -7 -7 -7 -7 -6 -6 -5 -5 -5 -5 -4 -4 -4 -4 -3 -3 -2 -2 -2 -2 -1 ------- Run | Yrd Mat Mat Min Exi Min Mat Gar Mat Gar Fac Gar Fac Gar Fac Gar Fac Gar Fac Gar Fac Gar Fac Gar Res Gar Res Gar Res Gar Acc Traps Triggered 57 | . 1 1 1 . . . 2 . 1 . 7 3 3 . 3 . 8 5 . 1 2 . 8 1 2 . 3 1 1 3 Indirectly . | . . . . . . . . . . . . . . . . . . . . . . . . . . . . . . . Trap Hack Attempts . | . . . . . . . . . . . . . . . . . . . . . . . . . . . . . . . Triggered . | . . . . . . . . . . . . . . . . . . . . . . . . . . . . . . . Disarmed . | . . . . . . . . . . . . . . . . . . . . . . . . . . . . . . . Reprogrammed . | . . . . . . . . . . . . . . . . . . . . . . . . . . . . . . . Reused 9 | . . . . . . . . . 1 . 3 . . . . . . . . . . . . . 2 . . . 3 . Traps Extracted 1 | . . . . . . . . . . . . . . . . . . . . . . . . . . . . . 1 . Installed 10 | . . . . . . . . . 1 . 3 . . . . . . . . . . . . . 2 . . . 4 . Triggered 9 | . . . . . . . . . 1 . 3 . . . . . . . . . . . . . 2 . . . 3 . Most Traps Carried 10 | . . . 3 3 3 3 3 3 3 2 10 6 6 6 6 6 6 6 6 6 6 6 6 6 6 4 4 4 4 . Machines | -11 -10 -9 -9 -9 -8 -8 -8 -8 -8 -7 -7 -7 -7 -6 -6 -5 -5 -5 -5 -4 -4 -4 -4 -3 -3 -2 -2 -2 -2 -1 ---------- Run | Yrd Mat Mat Min Exi Min Mat Gar Mat Gar Fac Gar Fac Gar Fac Gar Fac Gar Fac Gar Fac Gar Fac Gar Res Gar Res Gar Res Gar Acc Machines Disabled 58 | . . 3 . . . . 2 . 1 . 6 . . 1 2 . 3 1 2 . 3 1 8 . 3 . 6 5 6 5 Max in Single Turn 2 | . . 1 . . . . 1 . 1 . 1 . . 1 1 . 1 1 1 . 1 1 1 . 1 . 2 2 2 1 Garrison Access 1 | . . . . . . . . . . . . . . . . . . . . . . . . . . . . . . 1 Garrison Relay 27 | . . . . . . . 2 . 1 . . . . . 2 . 2 . 2 . 3 . 4 . 4 . 4 . 3 . Phase Generator 1 | . . . . . . . . . 1 . . . . . . . . . . . . . . . . . . . . . Energy Cycler 1 | . . . . . . . . . . . . . . . . . . . . . . . . . . . . . . 1 Machines Repaired . | . . . . . . . . . . . . . . . . . . . . . . . . . . . . . . . Machines Dismantled . | . . . . . . . . . . . . . . . . . . . . . . . . . . . . . . . Machines Sabotaged . | . . . . . . . . . . . . . . . . . . . . . . . . . . . . . . . Overloaded Fab Kills . | . . . . . . . . . . . . . . . . . . . . . . . . . . . . . . . Hacking | -11 -10 -9 -9 -9 -8 -8 -8 -8 -8 -7 -7 -7 -7 -6 -6 -5 -5 -5 -5 -4 -4 -4 -4 -3 -3 -2 -2 -2 -2 -1 --------- Run | Yrd Mat Mat Min Exi Min Mat Gar Mat Gar Fac Gar Fac Gar Fac Gar Fac Gar Fac Gar Fac Gar Fac Gar Res Gar Res Gar Res Gar Acc Machines Accessed 77 | . 3 6 1 2 1 2 2 3 1 1 1 4 . 2 2 1 2 6 1 3 2 6 3 7 1 2 1 6 1 4 Terminals 45 | . 2 4 . . 1 1 2 2 1 . 1 3 . 1 2 . 2 . 1 1 2 3 3 3 1 1 1 3 1 3 Fabricators 3 | . . . . . . . . . . . . . . . . . . 1 . . . 1 . . . . . 1 . . Repair Stations 4 | . . . . . . . . . . . . . . . . . . 2 . . . . . 1 . . . 1 . . Recycling Units 6 | . 1 1 . . . . . . . . . . . . . . . 2 . 1 . . . 1 . . . . . . Scanalyzers 2 | . . 1 . . . . . . . . . . . . . . . . . . . . . 1 . . . . . . Garrison Access 14 | . . . . . . 1 . 1 . 1 . 1 . 1 . 1 . 1 . 1 . 2 . 1 . 1 . 1 . 1 Total Hacks 171 | . 13 23 1 2 3 3 3 5 1 1 1 13 . 4 4 3 2 12 2 7 2 11 7 21 2 4 2 10 2 7 Successful 75 | . 7 13 1 2 1 1 1 2 1 1 . 6 . 2 . 1 2 9 . 3 2 2 2 9 1 1 . 2 . 3 Failed 95 | . 6 9 . . 2 2 2 3 . . 1 7 . 2 4 2 . 3 2 4 . 9 5 12 1 3 2 8 2 4 Catastrophic 25 | . . 1 . . 2 . . 1 . . 1 3 . 1 1 1 . 2 . . . 5 . 2 . 2 . 2 . 1 Database Lockouts 1 | . . 1 . . . . . . . . . . . . . . . . . . . . . . . . . . . . Manual 86 | . 7 17 . 1 2 . . 4 . . . 8 . 2 . 2 . 5 . 3 . 9 1 12 . 2 . 6 . 5 Terminals 103 | . 10 18 . . 3 2 3 4 1 . 1 11 . 2 4 . 2 . 2 3 2 6 7 5 2 1 2 5 2 5 Fabricators 4 | . . . . . . . . . . . . . . . . . . 1 . . . 1 . . . . . 2 . . Repair Stations 7 | . . . . . . . . . . . . . . . . . . 4 . . . . . 2 . . . 1 . . Recycling Units 17 | . 3 4 . . . . . . . . . . . . . . . 5 . 2 . . . 3 . . . . . . Scanalyzers 6 | . . 1 . . . . . . . . . . . . . . . . . . . . . 5 . . . . . . Garrison Access 31 | . . . . . . 1 . 1 . 1 . 2 . 2 . 3 . 2 . 2 . 4 . 6 . 3 . 2 . 2 Terminal Hacks 28 | . 4 8 1 2 1 . 1 . 1 . . 3 . . . . 2 . . . 2 . 2 . 1 . . . . . Record 1 | . . . . 1 . . . . . . . . . . . . . . . . . . . . . . . . . . Robot Analysis 6 | . 2 2 . . . . . . . . . 2 . . . . . . . . . . . . . . . . . . Prototype ID Bank 7 | . 1 5 . . . . . . . . . 1 . . . . . . . . . . . . . . . . . . Open Door 1 | . . . 1 . . . . . . . . . . . . . . . . . . . . . . . . . . . Emergency Access Points 3 | . . . . . . . . . 1 . . . . . . . . . . . 1 . 1 . . . . . . . Alert Level 1 | . . 1 . . . . . . . . . . . . . . . . . . . . . . . . . . . . Hauler Manifests 1 | . 1 . . . . . . . . . . . . . . . . . . . . . . . . . . . . . Zone Layout 1 | . . . . . 1 . . . . . . . . . . . . . . . . . . . . . . . . . Garrison Registry 3 | . . . . . . . 1 . . . . . . . . . 1 . . . . . . . 1 . . . . . Patrol Navigation 3 | . . . . . . . . . . . . . . . . . 1 . . . 1 . 1 . . . . . . . Proto ID Catalog 1 | . . . . 1 . . . . . . . . . . . . . . . . . . . . . . . . . . Fabricator Hacks . | . . . . . . . . . . . . . . . . . . . . . . . . . . . . . . . Repair Station Hacks 3 | . . . . . . . . . . . . . . . . . . 2 . . . . . 1 . . . . . . Scan Component 2 | . . . . . . . . . . . . . . . . . . 1 . . . . . 1 . . . . . . Repair 1 | . . . . . . . . . . . . . . . . . . 1 . . . . . . . . . . . . Recycling Unit Hacks 7 | . 1 1 . . . . . . . . . . . . . . . 3 . 1 . . . 1 . . . . . . Report Inventory 3 | . . . . . . . . . . . . . . . . . . 2 . 1 . . . . . . . . . . Retrieve Components 4 | . 1 1 . . . . . . . . . . . . . . . 1 . . . . . 1 . . . . . . Scanalyzer 3 | . . . . . . . . . . . . . . . . . . . . . . . . 3 . . . . . . Insert Component 2 | . . . . . . . . . . . . . . . . . . . . . . . . 2 . . . . . . Analyze 1 | . . . . . . . . . . . . . . . . . . . . . . . . 1 . . . . . . Garrison Access Hacks 13 | . . . . . . 1 . 1 . 1 . 1 . 1 . 1 . 1 . 1 . 1 . 1 . 1 . 1 . 1 Unlock Access 12 | . . . . . . 1 . 1 . 1 . 1 . 1 . 1 . 1 . 1 . 1 . 1 . 1 . 1 . . Seal Access 1 | . . . . . . . . . . . . . . . . . . . . . . . . . . . . . . 1 Unauthorized Hacks 21 | . 2 4 . . . . . 1 . . . 2 . 1 . . . 3 . 1 . 1 . 3 . . . 1 . 2 Terminals 12 | . 2 2 . . . . . 1 . . . 1 . 1 . . . . . 1 . 1 . . . . . 1 . 2 Track 1 | . 1 . . . . . . . . . . . . . . . . . . . . . . . . . . . . . Botnet 11 | . 1 2 . . . . . 1 . . . 1 . 1 . . . . . 1 . 1 . . . . . 1 . 2 Fabricators . | . . . . . . . . . . . . . . . . . . . . . . . . . . . . . . . Repair Stations 1 | . . . . . . . . . . . . . . . . . . 1 . . . . . . . . . . . . Patch 1 | . . . . . . . . . . . . . . . . . . 1 . . . . . . . . . . . . Recycling Units 3 | . . 1 . . . . . . . . . . . . . . . 2 . . . . . . . . . . . . Recyclers 1 | . . . . . . . . . . . . . . . . . . 1 . . . . . . . . . . . . Mask 2 | . . 1 . . . . . . . . . . . . . . . 1 . . . . . . . . . . . . Scanalyzers 1 | . . 1 . . . . . . . . . . . . . . . . . . . . . . . . . . . . Extract 1 | . . 1 . . . . . . . . . . . . . . . . . . . . . . . . . . . . Garrison Access 4 | . . . . . . . . . . . . 1 . . . . . . . . . . . 3 . . . . . . Broadcast 1 | . . . . . . . . . . . . . . . . . . . . . . . . 1 . . . . . . Reprogram 2 | . . . . . . . . . . . . 1 . . . . . . . . . . . 1 . . . . . . Watchers 1 | . . . . . . . . . . . . . . . . . . . . . . . . 1 . . . . . . Data Cores Recovered 1 | . . . . . . . . . . . . . . . . . . . . . . 1 . . . . . . . . Used 1 | . . . . . . . . . . . . . . . . . . . . . . 1 . . . . . . . . Hacking Detections 65 | . 3 5 . . 1 2 1 2 1 1 1 4 . 2 2 1 . 4 1 3 1 6 2 7 1 2 1 6 1 4 Full Trace Events 8 | . . . . . . . . . . . . 1 . 1 1 1 . 1 . . . 1 . 1 . 1 . . . . Feedback Events 2 | . . . . . . . . . . . . . . . 1 . . 1 . . . . . . . . . . . . Corruption 2 | . . . . . . . . . . . . . . . 1 . . 1 . . . . . . . . . . . . Feedback Blocked . | . . . . . . . . . . . . . . . . . . . . . . . . . . . . . . . Robot Schematics Acquired . | . . . . . . . . . . . . . . . . . . . . . . . . . . . . . . . Robots Built . | . . . . . . . . . . . . . . . . . . . . . . . . . . . . . . . Authchips . | . . . . . . . . . . . . . . . . . . . . . . . . . . . . . . . Time . | . . . . . . . . . . . . . . . . . . . . . . . . . . . . . . . Total Robot Build Rating . | . . . . . . . . . . . . . . . . . . . . . . . . . . . . . . . Part Schematics Acquired 4 | . . 3 . . . . . . . . . . . . . . . . . . . . . 1 . . . . . . Parts Built . | . . . . . . . . . . . . . . . . . . . . . . . . . . . . . . . Authchips . | . . . . . . . . . . . . . . . . . . . . . . . . . . . . . . . Time . | . . . . . . . . . . . . . . . . . . . . . . . . . . . . . . . Total Part Build Rating . | . . . . . . . . . . . . . . . . . . . . . . . . . . . . . . . Parts Repaired 1 | . . . . . . . . . . . . . . . . . . 1 . . . . . . . . . . . . Time 38 | . . . . . . . . . . . . . . . . . . 38 . . . . . . . . . . . . Parts Recycled . | . . . . . . . . . . . . . . . . . . . . . . . . . . . . . . . Recycled Matter . | . . . . . . . . . . . . . . . . . . . . . . . . . . . . . . . Retrieved Matter . | . . . . . . . . . . . . . . . . . . . . . . . . . . . . . . . Retrieved Components 13 | . . 10 . . . . . . . . . . . . . . . 3 . . . . . . . . . . . . Parts Scanalyzed 2 | . . . . . . . . . . . . . . . . . . . . . . . . 2 . . . . . . Part Schematics Acquired 1 | . . . . . . . . . . . . . . . . . . . . . . . . 1 . . . . . . Parts Damaged . | . . . . . . . . . . . . . . . . . . . . . . . . . . . . . . . Bothacking | -11 -10 -9 -9 -9 -8 -8 -8 -8 -8 -7 -7 -7 -7 -6 -6 -5 -5 -5 -5 -4 -4 -4 -4 -3 -3 -2 -2 -2 -2 -1 ------------ Run | Yrd Mat Mat Min Exi Min Mat Gar Mat Gar Fac Gar Fac Gar Fac Gar Fac Gar Fac Gar Fac Gar Fac Gar Res Gar Res Gar Res Gar Acc Used RIF Installer 12 | . . . . . . . 1 . 1 . 1 . 1 . 1 . 1 . 1 . 1 . 1 . 1 . 1 . 1 . Code Merge 1 | . . . . . . . . . . . . . . . . . . . . . . . . . 1 . . . . . Command Fork 1 | . . . . . . . . . . . . . 1 . . . . . . . . . . . . . . . . . Signal Jammer 1 | . . . . . . . . . . . . . . . . . . . . . . . . . . . . . 1 . Zone Cloak 1 | . . . . . . . . . 1 . . . . . . . . . . . . . . . . . . . . . Robot Detection 1 | . . . . . . . . . . . . . . . . . . . . . . . 1 . . . . . . . Patrol Navigation 1 | . . . . . . . . . . . . . . . . . . . . . 1 . . . . . . . . . Structural Interface 1 | . . . . . . . . . . . 1 . . . . . . . . . . . . . . . . . . . Program Shield 1 | . . . . . . . . . . . . . . . 1 . . . . . . . . . . . . . . . Autooverride 2 | . . . . . . . . . . . . . . . . . 1 . 1 . . . . . . . . . . . Crosswire 1 | . . . . . . . . . . . . . . . . . . . . . . . . . . . 1 . . . Robots Hacked 88 | . . . . 4 . . . . . . . . 1 . 3 . 4 . 3 . 2 1 9 6 12 2 10 6 10 15 Non-combat 3 | . . . . 3 . . . . . . . . . . . . . . . . . . . . . . . . . . Combat 85 | . . . . 1 . . . . . . . . 1 . 3 . 4 . 3 . 2 1 9 6 12 2 10 6 10 15 Autooverrided 45 | . . . . . . . . . . . . . . . . . 1 . 1 . 1 . 3 5 11 . 7 3 7 6 Robot Hacks Applied 46 | . . . . 4 . . . . . . . . 1 . 3 . 3 . 2 . 1 1 7 1 2 2 4 3 3 9 parse_system 5 | . . . . 4 . . . . . . . . . . . . . . . . . . . . . . 1 . . . scatter_targeting 1 | . . . . . . . . . . . . . . . . . . . . . . . . . . . . . 1 . amplify_resonance 17 | . . . . . . . . . . . . . . . 1 . 1 . . . . 1 3 . 2 . 2 1 1 5 go_dormant 1 | . . . . . . . . . . . . . . . . . . . . . . . . . . . . . . 1 overwrite_iff 1 | . . . . . . . . . . . . . . . . . . . . . . . . . . . . . . 1 streamctrl_high 2 | . . . . . . . . . . . . . . . 1 . . . 1 . . . . . . . . . . . formatsys_high 17 | . . . . . . . . . . . . . 1 . 1 . 2 . 1 . 1 . 4 1 . 1 1 1 1 2 formatsys_deep 2 | . . . . . . . . . . . . . . . . . . . . . . . . . . 1 . 1 . . Relay Couplers Released 102 | . . . . . . . 7 . 4 . . . . . 7 . 6 . 8 . 9 . 18 . 16 . 17 . 10 . Machine Destruction 102 | . . . . . . . 7 . 4 . . . . . 7 . 6 . 8 . 9 . 18 . 16 . 17 . 10 . Attached 28 | . . . . . . . . . . . . . 1 . 2 . 3 . 1 . 2 . 10 1 2 . 1 1 4 . Crosswired 15 | . . . . . . . . . . . . . . . . . . . . . . . . . . . 9 . 6 . Merged Code Value 239 | . . . . . . . . . . . . . . . . . . . . . . . . . 14 20 115 . 90 . Fabnet Peak Effective % . | . . . . . . . . . . . . . . . . . . . . . . . . . . . . . . . Robots Rewired 21 | . . . . . . . . . . . . . . . 8 . . . . . . . 1 . 6 . 6 . . . Allies Hacked . | . . . . . . . . . . . . . . . . . . . . . . . . . . . . . . . Hacks Repelled . | . . . . . . . . . . . . . . . . . . . . . . . . . . . . . . . Allies | -11 -10 -9 -9 -9 -8 -8 -8 -8 -8 -7 -7 -7 -7 -6 -6 -5 -5 -5 -5 -4 -4 -4 -4 -3 -3 -2 -2 -2 -2 -1 -------- Run | Yrd Mat Mat Min Exi Min Mat Gar Mat Gar Fac Gar Fac Gar Fac Gar Fac Gar Fac Gar Fac Gar Fac Gar Res Gar Res Gar Res Gar Acc Total Allies 108 | . . . 4 . . . . . . . . 2 1 . 11 . 4 . 3 . 4 . 11 6 17 7 14 6 8 10 Largest Group 8 | . . . 4 4 1 1 1 . . . . 2 3 . 8 . 2 . 1 . 4 3 3 2 5 6 6 3 3 3 Highest-Rated Group 266 | . . . 100 100 31 28 28 . . . . 32 64 . 244 . 58 . 41 . 266 219 172 112 248 214 246 171 154 138 Highest-Rated Ally 148 | . . . 31 31 31 28 28 . . . . 16 32 . 32 . 49 . 41 . 95 95 148 56 64 64 64 148 148 69 Total Orders 10 | . . . . . . . . . . . . . . . . . . . . . . . 4 . . 2 . . . 4 STAY 4 | . . . . . . . . . . . . . . . . . . . . . . . 2 . . 2 . . . . FOLLOW 2 | . . . . . . . . . . . . . . . . . . . . . . . 2 . . . . . . . EXPLORE 4 | . . . . . . . . . . . . . . . . . . . . . . . . . . . . . . 4 Ally Attacks 446 | . . . . . 1 3 7 . . . . 2 49 . 53 . 17 . 5 . 27 10 69 13 33 1 60 39 30 27 Total Damage 12548 | . . . . . . 44 62 . . . . 32 753 . 1319 . 301 . 147 . 989 353 2753 557 905 . 1718 819 804 992 Kills 68 | . . . . . . 1 . . . . . . 5 . 6 . 1 . . . 8 2 16 1 5 . 8 8 2 5 Allies Corrupted 5 | . . . . . . . . . . . . . . . 1 . . . . . . . . . . . . . 2 2 Allies Melted 3 | . . . . . . . . . . . . . 1 . . . . . . . . . . . 1 . . . . 1 Intel | -11 -10 -9 -9 -9 -8 -8 -8 -8 -8 -7 -7 -7 -7 -6 -6 -5 -5 -5 -5 -4 -4 -4 -4 -3 -3 -2 -2 -2 -2 -1 ------- Run | Yrd Mat Mat Min Exi Min Mat Gar Mat Gar Fac Gar Fac Gar Fac Gar Fac Gar Fac Gar Fac Gar Fac Gar Res Gar Res Gar Res Gar Acc Active Infowar (turns) 10755 | 2 488 . . . . . . . . . . . . . . . . 102 810 452 861 541 1843 321 1248 391 1152 993 465 1086 Optics 1 | . . . . . . . . . . . . . . . . . . . . . . . . . . . 1 . . . Sensors 427 | . . . . . . . . . . . . . . . . . . . . . . . . . . . . . . 427 Terrain 246 | . 246 . . . . . . . . . . . . . . . . . . . . . . . . . . . . . Seismic 244 | 2 242 . . . . . . . . . . . . . . . . . . . . . . . . . . . . . Cloaking 1 | . . . . . . . . . . . . . . . . . . . . . . . . . . . . 1 . . Jamming 9838 | . . . . . . . . . . . . . . . . . . 102 810 452 861 541 1843 321 1248 391 1152 993 465 659 Robot Analysis Total 6 | . 2 2 . . . . . . . . . 2 . . . . . . . . . . . . . . . . . . Derelict Logs Recovered 3 | . . . 3 . . . . . . . . . . . . . . . . . . . . . . . . . . . Drone Launches 4 | . . . . . . . . . . . . . . . . . . . . . . . . . . . . . . 4 Drone Recoveries 2 | . . . . . . . . . . . . . . . . . . . . . . . . . . . . . . 2 Exploration | -11 -10 -9 -9 -9 -8 -8 -8 -8 -8 -7 -7 -7 -7 -6 -6 -5 -5 -5 -5 -4 -4 -4 -4 -3 -3 -2 -2 -2 -2 -1 ------------- Run | Yrd Mat Mat Min Exi Min Mat Gar Mat Gar Fac Gar Fac Gar Fac Gar Fac Gar Fac Gar Fac Gar Fac Gar Res Gar Res Gar Res Gar Acc Turns Passed 23890 | 68 610 688 889 739 418 118 266 88 495 15 954 710 604 276 1998 23 1396 967 820 452 861 541 2096 652 1248 391 1152 993 1659 1703 Spaces Moved 13835 | 38 285 452 636 519 231 108 358 52 541 19 653 467 344 184 822 10 589 450 508 310 625 380 1342 407 571 230 575 545 773 811 Core 7 | 4 . . . . . . . . . . . . . . 1 . . . . . . . . . . . . . . 2 Treads 139 | . 88 20 . . . . . . . . . . 2 . 25 . . . . . . . . . . . . . . 4 Legs 8679 | . . . . . . . . . . . . . . . 617 10 589 450 508 310 625 380 1342 407 571 230 575 545 773 747 Wheels 3701 | 34 197 432 636 519 231 . . . . . 500 467 342 184 101 . . . . . . . . . . . . . . 58 Hover . | . . . . . . . . . . . . . . . . . . . . . . . . . . . . . . . Flight 1309 | . . . . . . 108 358 52 541 19 153 . . . 78 . . . . . . . . . . . . . . . Fastest Speed 50 | 50 90 105 105 125 170 50 50 50 50 50 50 130 115 105 105 190 190 120 115 115 115 115 116 117 117 120 126 120 116 110 Average Speed 129 | 85 145 110 123 139 170 50 50 50 50 50 111 130 130 125 211 190 190 182 125 115 115 115 124 117 126 154 126 123 119 131 Slowest Speed 1450 | 90 240 240 140 155 170 50 50 50 50 50 130 130 410 130 1450 190 190 190 185 115 115 117 210 190 183 185 126 190 190 450 Overloaded Moves . | . . . . . . . . . . . . . . . . . . . . . . . . . . . . . . . Propulsion Burnouts . | . . . . . . . . . . . . . . . . . . . . . . . . . . . . . . . Robots Hopped . | . . . . . . . . . . . . . . . . . . . . . . . . . . . . . . . Potential Cave-ins 4 | . . . . . . . . . . . . . . . . . . . . . . . . . . . 2 . 2 . Cave-ins Triggered 1 | . . . . . . . . . . . . . . . . . . . . . . 1 . . . . . . . . Exploration Rate (%) 40 | 3 54 33 95 90 50 10 44 8 66 1 71 10 39 8 87 1 66 14 66 11 82 11 98 14 50 7 52 19 76 20 Regions Visited 30 Branch Regions 3 Pre-discovered Areas 4 | . . . 3 1 . . . . . . . . . . . . . . . . . . . . . . . . . . Known Exits Taken 12 | . . . . . . 1 . 1 . 1 . 1 . 1 . 1 . 1 . 1 . 1 . 1 . 1 . 1 . . Unknown Exits Taken 6 | 1 1 1 1 1 1 . . . . . . . . . . . . . . . . . . . . . . . . . Scrap Searched 1 | . . . 1 . . . . . . . . . . . . . . . . . . . . . . . . . . . Spaces Dug 57 | . 4 . . . . . . 1 . . . . 1 . . . 2 . . 1 . 10 2 14 1 4 1 5 . 11 Terrain Destroyed 493 | . 22 40 . . . . . 1 . . 7 20 16 8 25 . 7 3 13 2 9 16 40 24 26 7 35 56 35 81 Melee . | . . . . . . . . . . . . . . . . . . . . . . . . . . . . . . . Projectile 345 | . . . . . . . . 1 . . 7 20 16 8 25 . 7 3 13 2 9 16 40 24 26 7 35 23 35 28 AOE 147 | . 22 40 . . . . . . . . . . . . . . . . . . . . . . . . . 33 . 52 Terrain Rammed . | . . . . . . . . . . . . . . . . . . . . . . . . . . . . . . . Walls Destroyed . | . . . . . . . . . . . . . . . . . . . . . . . . . . . . . . . Machines Disabled . | . . . . . . . . . . . . . . . . . . . . . . . . . . . . . . . Actions | -11 -10 -9 -9 -9 -8 -8 -8 -8 -8 -7 -7 -7 -7 -6 -6 -5 -5 -5 -5 -4 -4 -4 -4 -3 -3 -2 -2 -2 -2 -1 --------- Run | Yrd Mat Mat Min Exi Min Mat Gar Mat Gar Fac Gar Fac Gar Fac Gar Fac Gar Fac Gar Fac Gar Fac Gar Res Gar Res Gar Res Gar Acc Total 18109 | 56 401 561 718 537 247 163 426 112 666 23 817 526 444 205 993 13 805 585 655 401 741 465 1635 539 996 258 884 805 1213 1219 Wait 2120 | . 56 14 49 . 10 36 12 58 45 . 45 24 32 7 26 . 101 88 84 75 69 66 109 86 303 3 187 200 185 150 Move 13813 | 37 284 451 635 518 230 108 357 52 540 19 652 466 343 184 821 10 588 450 507 309 624 380 1341 407 570 229 574 544 772 811 Hop . | . . . . . . . . . . . . . . . . . . . . . . . . . . . . . . . Pick Up 167 | 4 4 13 6 6 . 4 4 1 5 1 5 1 4 . 11 . 11 4 8 3 7 1 14 3 2 3 5 6 8 23 Fast Attach 159 | 7 2 5 1 . . . . . . . 3 5 4 2 14 2 3 1 1 3 3 1 18 3 8 4 4 4 40 21 Attach 119 | . 2 10 3 . . 2 . . 3 2 8 . 5 1 10 . 6 1 5 3 . 3 7 2 3 1 . 3 9 30 Detach 30 | . . 1 1 . . . . . . . 5 1 2 1 5 . 1 . 1 . . . 4 . 1 . . . 2 5 Swap 133 | 1 7 9 3 2 3 2 2 . 6 1 10 3 5 . 5 . 10 2 9 1 1 . 16 3 6 2 1 3 8 12 Drop 219 | . 2 4 7 7 . 6 5 . 3 . 7 4 9 1 20 1 13 5 9 3 9 1 24 6 10 8 9 9 18 19 Fire 1002 | 7 44 54 13 . 4 5 10 1 53 . 29 14 22 9 36 . 32 9 31 3 25 13 92 29 55 8 63 35 160 146 Melee 28 | . . . . 4 . . . . . . . . 2 . 22 . . . . . . . . . . . . . . . Ram . | . . . . . . . . . . . . . . . . . . . . . . . . . . . . . . . Kick 8 | . . . . . . . . . . . . . . . . . . . . . . . . . . . . 1 6 1 Crush . | . . . . . . . . . . . . . . . . . . . . . . . . . . . . . . . Escape Stasis 223 | . . . . . . . 36 . 10 . 50 8 16 . 23 . 40 25 . . 3 . 9 . 2 . . . 1 . Rewire 78 | . . . . . . . . . . . . . . . . . . . . 1 . . 1 . 34 . 41 . . 1 Trap 10 | . . . . . . . . . 1 . 3 . . . . . . . . . . . . . 2 . . . 4 . Miscellaneous . | . . . . . . . . . . . . . . . . . . . . . . . . . . . . . . . Route ------- -11/Scrapyard -10/Materials (discovered 3 exits: *Mat x2 / [*Min]) -9/Materials (discovered 2 exits: *Mat / *Min) -9/Mines (discovered 3 exits: *Mat x2 / *Exi) -9/Exiles -8/Mines -8/Materials -8/Garrison (discovered 3 exits: *Mat x3) -8/Materials -8/Garrison (discovered 2 exits: *Fac x2) -7/Factory -7/Garrison (discovered 3 exits: *Fac x3) -7/Factory -7/Garrison -6/Factory -6/Garrison (discovered 2 exits: *Fac x2) -5/Factory -5/Garrison (discovered 3 exits: *Fac x3) -5/Factory (discovered 2 exits: *Fac / Gar) -5/Garrison (discovered 2 exits: *Fac x2) -4/Factory (discovered 2 exits: *Res / Gar) -4/Garrison (discovered 3 exits: *Fac x3) -4/Factory -4/Garrison (discovered 3 exits: *Res x3) -3/Research -3/Garrison (discovered 3 exits: *Res x3) -2/Research -2/Garrison -2/Research -2/Garrison -1/Access History --------- Turn | Location | Event 22 | -11/Scrapyard | Discovered new exit (range 16) 69 | -11/Scrapyard | Entered Materials 266 | -10/Materials | Discovered new exit (range 11) 340 | -10/Materials | Build established: Mutant 412 | -10/Materials | Discovered new exit (range 3) 517 | -10/Materials | Discovered new exit (range 4) 557 | -10/Materials | Core integrity fell below 50% 569 | -10/Materials | Derelicts attacked the area 679 | -10/Materials | Entered another Materials area 679 | -9/Materials | Evolved 2 slots: Propulsion x1, Utility x1 822 | -9/Materials | Lost 3 parts (2n1w) 859 | -9/Materials | Discovered new exit (range 13) 1083 | -9/Materials | Discovered new exit (range 8) 1124 | -9/Materials | Build established: Scavenger-Mutant 1177 | -9/Materials | Central database locked down 1367 | -9/Materials | Entered Mines 1447 | -9/Mines | Learned location of Zion (-6) 1507 | -9/Mines | Build established: Mutant 1536 | -9/Mines | Found a hidden stash of uninstalled traps 1580 | -9/Mines | Discovered new exit (range 11) 1701 | -9/Mines | Assembled infested the area 1706 | -9/Mines | Assisted by a Guerilla fighting off Assembled 1715 | -9/Mines | Met a Derelict who couldn't figure out how to use a Trap Extractor 1783 | -9/Mines | Escorted by a lone wolf Derelict 1956 | -9/Mines | Met a Derelict testing a Signal Generator 2026 | -9/Mines | Build established: Scavenger-Mutant 2114 | -9/Mines | Discovered new exit (range 5) 2230 | -9/Mines | Deemed a non-threat by the Exiles lab entrance 2231 | -9/Mines | Discovered new exit (range 5) 2256 | -9/Mines | Entered Exiles 2256 | -9/Exiles | Accompanied by 4 allies 2286 | -9/Exiles | Led the pair of lost Derelicts to a safe place 2294 | -9/Exiles | Met 8R-AWN 2324 | -9/Exiles | Met EX-HEX 2379 | -9/Exiles | Met EX-BIN 2399 | -9/Exiles | Aligned with FarCom system 2401 | -9/Exiles | Given EX-Vault access code 2429 | -9/Exiles | Opened EX-Vault 2441 | -9/Exiles | Found Flying Fortress v7 2470 | -9/Exiles | Warned to stay clear of 0b10 Research branches 2502 | -9/Exiles | Met EX-DEC 2601 | -9/Exiles | Visited The Gauntlet 2973 | -9/Exiles | Discovered new exit (range 14) 2995 | -9/Exiles | Left Exiles lab with Flying Fortress v7 2995 | -9/Exiles | Entered Mines 2995 | -8/Mines | Accompanied by 1 ally 3150 | -8/Mines | Discovered new exit (range 6) 3412 | -8/Mines | System corruption reached 10% 3413 | -8/Mines | Entered Materials 3413 | -8/Materials | Accompanied by 1 ally 3413 | -8/Materials | Evolved 2 slots: Propulsion x1, Utility x1 3497 | -8/Materials | Garrison activated, responded to threat 3527 | -8/Materials | Identified exit to Garrison 3531 | -8/Materials | Entered Garrison 3531 | -8/Garrison | Accompanied by 1 ally 3547 | -8/Garrison | Triggered checkpoint 3566 | -8/Garrison | Garrison Relay disabled 3585 | -8/Garrison | Triggered checkpoint 3604 | -8/Garrison | Discovered new exit (range 62) 3604 | -8/Garrison | Discovered new exit (range 32) 3604 | -8/Garrison | Discovered new exit (range 50) 3678 | -8/Garrison | Installed Relay Interface Framework 3710 | -8/Garrison | Build established: Mutant 3731 | -8/Garrison | Triggered checkpoint 3754 | -8/Garrison | Garrison Relay disabled 3797 | -8/Garrison | Entered Materials 3885 | -8/Materials | Identified exit to Garrison 3885 | -8/Materials | Entered Garrison 3951 | -8/Garrison | Triggered checkpoint 3964 | -8/Garrison | Garrison Relay disabled 3984 | -8/Garrison | Expanded RIF knowledge: Zone Cloak 4053 | -8/Garrison | Triggered checkpoint 4065 | -8/Garrison | Build established: Bothacker-Mutant 4208 | -8/Garrison | Discovered new exit (range 12) 4273 | -8/Garrison | Triggered checkpoint 4298 | -8/Garrison | Discovered new exit (range 15) 4325 | -8/Garrison | Phase Generator disabled 4380 | -8/Garrison | Entered Factory 4380 | -7/Factory | Evolved 2 slots: Weapon x2 4395 | -7/Factory | Identified exit to Garrison 4395 | -7/Factory | Entered Garrison 4433 | -7/Garrison | Lost 3 parts (2u1w) 4521 | -7/Garrison | Triggered checkpoint 4582 | -7/Garrison | H-XX Assembler disabled 4653 | -7/Garrison | Build established: Bothacker-Skirmisher 4675 | -7/Garrison | Triggered checkpoint 4845 | -7/Garrison | Discovered new exit (range 12) 5031 | -7/Garrison | Expanded RIF knowledge: Structural Interface 5108 | -7/Garrison | Discovered new exit (range 13) 5195 | -7/Garrison | Triggered checkpoint 5219 | -7/Garrison | Discovered new exit (range 15) 5349 | -7/Garrison | Entered Factory 5399 | -7/Factory | Identified exit to Garrison 5904 | -7/Factory | Allied Derelicts emerged from ambush trap array 6059 | -7/Factory | Entered Garrison 6059 | -7/Garrison | Accompanied by 2 allies 6215 | -7/Garrison | Triggered checkpoint 6391 | -7/Garrison | Triggered checkpoint 6405 | -7/Garrison | Expanded RIF knowledge: Command Fork 6532 | -7/Garrison | Discovered new exit (range 11) 6663 | -7/Garrison | Entered Factory 6663 | -6/Factory | Evolved 2 slots: Utility x2 6939 | -6/Factory | Identified exit to Garrison 6939 | -6/Factory | Entered Garrison 7009 | -6/Garrison | Garrison Relay disabled 7025 | -6/Garrison | Triggered checkpoint 7603 | -6/Garrison | Lost 3 allies 7728 | -6/Garrison | Spotted B-75 Beast 7800 | -6/Garrison | Lost 5 allies 8052 | -6/Garrison | Expanded RIF knowledge: Program Shield 8311 | -6/Garrison | Triggered checkpoint 8398 | -6/Garrison | Discovered new exit (range 12) 8501 | -6/Garrison | Garrison Relay disabled 8613 | -6/Garrison | Triggered checkpoint 8899 | -6/Garrison | Discovered new exit (range 15) 8937 | -6/Garrison | Entered Factory 8937 | -5/Factory | Evolved 2 slots: Utility x2 8960 | -5/Factory | Identified exit to Garrison 8960 | -5/Factory | Entered Garrison 9199 | -5/Garrison | Expanded RIF knowledge: Autooverride 9306 | -5/Garrison | Triggered checkpoint 9340 | -5/Garrison | Garrison Relay disabled 9486 | -5/Garrison | Triggered checkpoint 9526 | -5/Garrison | Triggered checkpoint 9640 | -5/Garrison | Discovered new exit (range 10) 9677 | -5/Garrison | Build established: Bothacker-Tank 9927 | -5/Garrison | Garrison Relay disabled 9928 | -5/Garrison | Triggered checkpoint 10200 | -5/Garrison | Discovered new exit (range 20) 10200 | -5/Garrison | Discovered new exit (range 57) 10200 | -5/Garrison | Discovered new exit (range 72) 10356 | -5/Garrison | Entered Factory 10547 | -5/Factory | Build established: Bothacker-Gunner 10813 | -5/Factory | Discovered new exit (range 16) 11278 | -5/Factory | Repaired Carbon-fiber Leg 11323 | -5/Factory | Identified exit to Garrison 11323 | -5/Factory | Entered Garrison 11374 | -5/Garrison | Garrison Relay disabled 11487 | -5/Garrison | Triggered checkpoint 11533 | -5/Garrison | Garrison Relay disabled 11662 | -5/Garrison | Discovered new exit (range 14) 11741 | -5/Garrison | Triggered checkpoint 11909 | -5/Garrison | Triggered checkpoint 12022 | -5/Garrison | Discovered new exit (range 10) 12088 | -5/Garrison | Expanded RIF knowledge: Autooverride 12143 | -5/Garrison | Entered Factory 12143 | -4/Factory | Evolved 2 slots: Utility x2 12447 | -4/Factory | Build established: Botlord-Tank 12537 | -4/Factory | Discovered new exit (range 3) 12591 | -4/Factory | Identified exit to Garrison 12595 | -4/Factory | Entered Garrison 12699 | -4/Garrison | Triggered checkpoint 12752 | -4/Garrison | Garrison Relay disabled 12797 | -4/Garrison | Triggered checkpoint 12843 | -4/Garrison | Discovered new exit (range 3) 12873 | -4/Garrison | Found embedded Infiltrators 12922 | -4/Garrison | Garrison Relay disabled 12923 | -4/Garrison | Triggered checkpoint 13061 | -4/Garrison | Triggered checkpoint 13063 | -4/Garrison | Triggered checkpoint 13130 | -4/Garrison | Discovered new exit (range 12) 13232 | -4/Garrison | Garrison Relay disabled 13323 | -4/Garrison | Expanded RIF knowledge: Patrol Navigation 13427 | -4/Garrison | Discovered new exit (range 10) 13445 | -4/Garrison | Build established: Botlord-Gunner 13456 | -4/Garrison | Entered Factory 13456 | -4/Factory | Accompanied by 3 allies 13751 | -4/Factory | Crushed by falling debris 13751 | -4/Factory | System corruption reached 10% 13782 | -4/Factory | Lost 3 parts (1n2u) 13951 | -4/Factory | Identified exit to Garrison 13997 | -4/Factory | Entered Garrison 13997 | -4/Garrison | Accompanied by 1 ally 14101 | -4/Garrison | Build established: Bothacker-Gunner 14219 | -4/Garrison | Triggered checkpoint 14229 | -4/Garrison | Garrison Relay disabled 14317 | -4/Garrison | Spotted B-86 Titan 14337 | -4/Garrison | Triggered checkpoint 14387 | -4/Garrison | Assimilated Titan 7a with formatsys_high 14515 | -4/Garrison | Build established: Botlord-Gunner 14523 | -4/Garrison | Triggered checkpoint 14546 | -4/Garrison | Triggered checkpoint 14718 | -4/Garrison | Discovered new exit (range 2) 14801 | -4/Garrison | Triggered checkpoint 14877 | -4/Garrison | Triggered checkpoint 14894 | -4/Garrison | Garrison Relay disabled 14931 | -4/Garrison | Discovered new exit (range 10) 15074 | -4/Garrison | Discovered new exit (range 5) 15123 | -4/Garrison | Found embedded Infiltrators 15227 | -4/Garrison | Triggered checkpoint 15249 | -4/Garrison | Spotted B-75 Beast 15267 | -4/Garrison | Rewired B-90 Cyclops 15272 | -4/Garrison | Lost 3 allies 15283 | -4/Garrison | Lost 5 parts (1p1n2u1w) 15307 | -4/Garrison | Destroyed B-75 Beast 15371 | -4/Garrison | Garrison Relay disabled 15707 | -4/Garrison | Triggered checkpoint 15743 | -4/Garrison | Garrison Relay disabled 15760 | -4/Garrison | Expanded RIF knowledge: Robot Detection 16093 | -4/Garrison | Entered Research 16093 | -3/Research | Evolved 2 slots: Power x1, Utility x1 16145 | -3/Research | Found Unknown Device 16145 | -3/Research | Identified Quantum Capacitor 16171 | -3/Research | Build established: Botlord-Tank 16675 | -3/Research | Garrison activated, responded to threat 16709 | -3/Research | Identified exit to Garrison 16745 | -3/Research | Entered Garrison 16799 | -3/Garrison | Triggered checkpoint 16827 | -3/Garrison | Triggered checkpoint 16828 | -3/Garrison | Spotted B-86 Titan 16899 | -3/Garrison | Lost 9 allies 16907 | -3/Garrison | Triggered checkpoint 16918 | -3/Garrison | Garrison Relay disabled 17181 | -3/Garrison | Discovered new exit (range 49) 17181 | -3/Garrison | Discovered new exit (range 59) 17181 | -3/Garrison | Discovered new exit (range 33) 17291 | -3/Garrison | Destroyed B-86 Titan 17427 | -3/Garrison | Triggered checkpoint 17763 | -3/Garrison | Expanded RIF knowledge: Code Merge 17843 | -3/Garrison | Garrison Relay disabled 17993 | -3/Garrison | Entered Research 17993 | -2/Research | Evolved 2 slots: Utility x2 18135 | -2/Research | Assimilated ARC 9a with formatsys_deep 18301 | -2/Research | Identified exit to Garrison 18384 | -2/Research | Entered Garrison 18384 | -2/Garrison | Accompanied by 4 allies 18488 | -2/Garrison | Triggered checkpoint 18517 | -2/Garrison | Spotted Executioner 18517 | -2/Garrison | Spotted Executioner 18536 | -2/Garrison | Destroyed Executioner 18549 | -2/Garrison | Destroyed Executioner 18561 | -2/Garrison | Lost 5 allies 18737 | -2/Garrison | Triggered checkpoint 18737 | -2/Garrison | Triggered checkpoint 18930 | -2/Garrison | Discovered new exit (range 14) 19039 | -2/Garrison | Lost 3 allies 19097 | -2/Garrison | Expanded RIF knowledge: Crosswire 19130 | -2/Garrison | Garrison Relay disabled 19132 | -2/Garrison | Triggered checkpoint 19176 | -2/Garrison | Triggered checkpoint 19231 | -2/Garrison | Lost 3 allies 19235 | -2/Garrison | Garrison Relay disabled 19271 | -2/Garrison | Garrison Relay disabled 19536 | -2/Garrison | Entered Research 19786 | -2/Research | First assault squad dispatched 19843 | -2/Research | Assimilated ARC 9b with formatsys_deep 20303 | -2/Research | Spotted B-90 Cyclops 20305 | -2/Research | Assimilated Cyclops 9a with formatsys_high 20449 | -2/Research | Found Unknown Protection 20449 | -2/Research | Identified Imp. Powered Armor 20519 | -2/Research | Identified exit to Garrison 20529 | -2/Research | Entered Garrison 20529 | -2/Garrison | Accompanied by 1 ally 20698 | -2/Garrison | Spotted B-90 Cyclops 20708 | -2/Garrison | Lost 8 parts (1p4u3w) 20925 | -2/Garrison | Lost 5 parts (2n2u1w) 20926 | -2/Garrison | Destroyed B-90 Cyclops 21001 | -2/Garrison | Triggered checkpoint 21037 | -2/Garrison | Heavy support dispatched to Access 21065 | -2/Garrison | Lost 3 parts (1n1u1w) 21097 | -2/Garrison | Garrison Relay disabled 21148 | -2/Garrison | System corruption reached 10% 21220 | -2/Garrison | Lost 12 parts (1p2n5u4w) 21232 | -2/Garrison | Core integrity fell below 50% 21351 | -2/Garrison | Heavy support dispatched to Access 21534 | -2/Garrison | Lost 8 parts (1p1n2u4w) 21589 | -2/Garrison | Triggered checkpoint 21659 | -2/Garrison | Triggered checkpoint 21709 | -2/Garrison | Garrison Relay disabled 21735 | -2/Garrison | Discovered new exit (range 12) 21757 | -2/Garrison | H-XX Assembler disabled 21766 | -2/Garrison | Build established: Scavenger-Tank 22019 | -2/Garrison | Expanded RIF knowledge: Signal Jamming 22078 | -2/Garrison | Garrison Relay disabled 22188 | -2/Garrison | Entered Access 22188 | -1/Access | Evolved 2 slots: Propulsion x1, Utility x1 22438 | -1/Access | Build established: Botlord-Tank 22688 | -1/Access | First assault squad dispatched 22800 | -1/Access | Lost 4 parts (1n2u1w) 22880 | -1/Access | Lost 3 parts (1p1n1u) 22895 | -1/Access | System corruption reached 10% 23016 | -1/Access | Energy Cycler disabled 23385 | -1/Access | Destroyed 7 combat bots 23385 | -1/Access | Lost 3 allies 23414 | -1/Access | Lost 7 parts (1n5u1w) 23418 | -1/Access | Found Adv. Force Booster 23635 | -1/Access | Build established: Botlord-Skirmisher 23851 | -1/Access | Lost 11 parts (2p1n4u4w) 23853 | -1/Access | Spotted B-99 Colossus 23857 | -1/Access | Spotted B-99 Colossus 23879 | -1/Access | Core integrity fell below 50% 23883 | -1/Access | Core integrity fell below 20% 23891 | -1/Access | Destroyed by H-88 Terminator with Heavy Machine Gun Last Messages --------------- 23885_ Slug penetrates H-88 Terminator. 23885_ Relay Coupler [C] destroyed. 23885_ Penetrated by Slug. 23885_ Slug penetrates B-99 Colossus. 23885_ Penetrated by Slug. 23885_ Slug penetrates B-99 Colossus. 23885_ Penetrated by Slug. 23885_ Slug penetrates B-99 Colossus. 23886_ Wall collapses. 23886_ Acquired 4 matter. 23888_ Penetrated by Slug. 23889_ B-99 Colossus exits siege mode. 23889_ Adv. Signal Interpreter destroyed. 23889_ Critical hit (Blast). 23889_ Penetrated by Slug. 23889_ Slug penetrates B-99 Colossus. 23889_ Acquired 16 matter. 23890_ Penetrated by Slug. 23890_ Slug penetrates B-99 Colossus. 23890_ Penetrated by Slug. Map ----- +----------------------------------------------------+ | ?????????????????????????????????????????????????? | | ?????????????????????????????????????????????????? | | ?????????????????????????????????????????????????? | | ?????????????????????????????????????????????????? | | ?????????????????????????????????????????????????? | | ?????????????????????????????????????????????????? | | ?????????????????????????????????????????????????? | | ?????????????????????????????????????????????????? | | ?????????????????????????????????????????????????? | | ?????????????????????????????????????????????????? | | ?????????????????????????????????????????????????? | | ?????????????????????????????????????????????????? | | ?????????????????????????????????????????????????? | | ????????????????????????????????????????????????? | | ##??????????????????????????????????????????????? | | ###########+##????????????????????????????????? | | # " #?????######?????????????????????? | | # """ #?????# #?????????????????????? | | # """ #?????# %BB#?????????????????????? | | # " #?????# BB#?????????????????????? | | # #?????#% #??????????????????????? | | # #?????# % #??????????????????????? | | # #???###% #??????????????????????? | | # #???# ;%h]#??????????????????????? | | # ######+##########%!h #??????????????????????? | | "!*@"??????????????????????? | | # *= "%%="??????????????????????? | | # ! | "*[["??????????????????????? | | # ##############+##%;%%*#??????????????????????? | | # # # #==![#??????????????????????? | | #%% # # #[!%%#??????????????????????? | | # # ""# #;==!#??????????????????????? | | # =!" ""#! ## !#??????????????????????? | | /!!|/= ""# ## #?????????????????????? | | #!!%" ] S# " ## BB#?????????????????????? | | #**%# ""# """ ## BB#?????????????????????? | | # =# ""# """ #######?????????????????????? | | # %# ""# " #???????????????????????????? | | # # ##########???????????????????????????? | | #% # #????????????????????????????????????? | | # ###/#####????????????????????????????????????? | | " #?# #?????????#######????????????????????????? | | ?# #???????### # ###??????????????????##### | | !?# #???????# # ##?????????????????? | | ?# #??????## ###?????????????????? | | ?# #???? # = #?????????????????? | | ! ?# #?? # #??????????????????# | | #####?# # # # ##?????????????????# | | ??????# / # = +?????????????????# | | ??????# # # ###?????????????????# | +----------------------------------------------------+ Best States ------------- Heat Dissipation 137 Coolant Potential 80 Energy Generation 52 Energy Capacity 1350 Matter Stores 550 Matter Capacity 550 Sight Range 16 Robot Scan Range 16 Terrain Scan Range 16 Terrain Scan Density 10 Jamming Range 14 Power Amplification 40 Armor Coverage 1000 Resistance: TH 30 Core Shielding 30 Propulsion Shielding 33 Utility Shielding 33 Weapon Shielding 66 Weapon Cycling 25 Phase Shifting 15 Evasion (%) 70 Targeting Accuracy 14 Target Analysis 8 Recoil Reduction 7 Particle Charging 15 Force Boost 40 Offensive Hacking 10 Relay Coupler Types 9 Relay Coupler Value 195 Trap Extractor Capacity 6 Item Schematics ----------------- Imp. Targeting Computer | -9/Materials | Extracted Particle Cannon | -9/Materials | Extracted Hvy. EM Pulse Gun | -9/Materials | Extracted Adv. Thermal Shield | -3/Research | Scanalyzed Robot Schematics ------------------ None Fabricated ------------ Nothing Repaired ---------- Carbon-fiber Leg | 7% | -5/Factory Alien Tech Used ----------------- None Achievements -------------- None Challenges ------------ None Game ------ Seed CompactScanParser Manual? 0 Play Time 04:05:31 Cumulative 85.6 hours Start 2025.07.03 @ 20:16:59 End 2025.07.04 @ 20:58:59 Sessions 3 Manual Loads 0 Difficulty Rogue Special Mode None Game No. 96 Rogue 96 Adventurer 0 Explorer 0 Win Type - Total 1 Types 0/0/1/0/0/0/0/0/0/0 Lore% 53 Gallery% 54 Achievement% 48 Wizard Run 0 Options --------- Layout 1 ASCII 0 Keyboard 0 Movement Numpad Keybinds 0 Fullscreen 1 Font 24/Smallcaps Map View 50x35 Zoom Use 0% Tactical HUD 1 Map Filters NONE Filters NONE Steam 1 RUN: d3effa2b-1132-4ca8-822d-3d30fd0f0530